Cogmind - Beta 15 @@@ ROGUE MODE // 2025.07.29 @ 20:09:41 Player: shapeshifter Result: Destroyed by G-50 Soldier with Heavy Laser Performance ------------- Evolutions (4) 2000 Regions Visited (7) 1400 Robots Destroyed (25) 125 Value Destroyed (974) 974 Prototype IDs (7) 140 Alien Tech Used (0) 0 Bonus (1300) 1300 TOTAL SCORE: 5939 Bonus ------- Entered DSFs 500 Registered with UFD 300 Met Optimus in HQ 500 Cogmind --------- Core Integrity 0/850 Matter 46/300 Energy 75/100 System Corruption 55% Temperature Cool (9) Movement Treading (170) Location -6/DSF Parts ------- > --- POWER (2) -------- (None) > --- PROPULSION (4) --- Armored Medium Treads Armored Medium Treads > --- UTILITY (7) ------ Authchip [Weapon] > --- WEAPON (2) ------- (None) > --- INVENTORY (5) ---- Medium Treads Medium Treads Improved EM Pulse Cannon Peak State ------------ > --- POWER ------------ Light Angular Momentum Engine > --- PROPULSION ------- Carbon-fiber Leg Carbon-fiber Leg Flexi-carbon Leg Flexi-carbon Leg > --- UTILITY ---------- Scrap Suit Improved Heat Sink Improved Cooling System Medium Storage Unit Advanced Sensor Array Focal Shield > --- WEAPON ----------- Gatling Laser Heavy Plasma Cannon > --- INVENTORY -------- Improved Deuterium Engine Reinforced Deuterium Engine Improved Weapon Shielding Improved EM Pulse Cannon Magnetic Acceleration Cannon Improved Datajack [Rating: 58] Favorites ----------- Power Ion Engine Engine Ion Engine Propulsion Light Treads Treads Light Treads Leg Carbon-fiber Leg Wheel Compact Wheel Utility Hardened Medium Armor Plating Device Scrap Suit Storage Small Storage Unit Processor Advanced Melee Analysis Suite Hackware Authchip [Weapon] Protection Hardened Medium Armor Plating Weapon Assault Cannon Energy Gun Medium Laser Energy Cannon Ion Cannon Ballistic Gun Light Assault Rifle Ballistic Cannon Assault Cannon Slashing Weapon Power Sword Build | -11 -10 -10 -8 -6 -6 -6 -6 ------- Run | Yrd Mat Sub Scr Fac Was Fac DSF Slots Evolved 8 | . . . . 8 . . . Power 1 | . . . . 1 . . . Propulsion 2 | . . . . 2 . . . Utility 5 | . . . . 5 . . . Weapon . | . . . . . . . . Parts Attached 54 | 7 1 . 8 28 . . 10 Power 6 | 1 . . 1 3 . . 1 Engine 6 | 1 . . 1 3 . . 1 Core . | . . . . . . . . Reactor . | . . . . . . . . Propulsion 17 | 2 . . . 8 . . 7 Treads 9 | 2 . . . . . . 7 Leg 5 | . . . . 5 . . . Wheel 3 | . . . . 3 . . . Hover . | . . . . . . . . Flight . | . . . . . . . . Utility 21 | 2 . . 5 13 . . 1 Device 9 | 1 . . 1 7 . . . Storage 4 | 1 . . 2 1 . . . Processor 2 | . . . 1 1 . . . Hackware 1 | . . . . . . . 1 Protection 5 | . . . 1 4 . . . Artifact . | . . . . . . . . Weapon 10 | 2 1 . 2 4 . . 1 Energy Gun 3 | 1 . . . 1 . . 1 Energy Cannon 2 | . . . 1 1 . . . Ballistic Gun 1 | 1 . . . . . . . Ballistic Cannon 3 | . 1 . 1 1 . . . Launcher . | . . . . . . . . Special Weapon . | . . . . . . . . Impact Weapon . | . . . . . . . . Slashing Weapon 1 | . . . . 1 . . . Piercing Weapon . | . . . . . . . . Special Melee Weapon . | . . . . . . . . Unidentified Prototypes 1 | . . . . 1 . . . Corrupted Parts 2 | . . . . 2 . . . System Corruption 15 | . . . . 15 . . . Parts Lost 32 | . . 1 . 15 7 . 9 Power 4 | . . . . 2 1 . 1 Propulsion 11 | . . . . 4 3 . 4 Utility 12 | . . 1 . 7 3 . 1 Weapon 5 | . . . . 2 . . 3 Highest Loss Streak 14 | . . 1 . 14 7 . 9 To Critical Strikes 4 | . . . . 1 2 . 1 Average Backups 8 | 6 7 7 7 11 6 5 3 Power 1 | . 1 1 1 . 1 1 . Propulsion . | 3 3 2 . . . . 1 Utility 3 | . 1 2 3 6 1 1 . Weapon 2 | . 1 2 1 3 2 3 1 Tool/Special . | . . . . . . . . Unused Backups 31 | 2 2 6 9 7 2 . 3 Power 4 | . . 1 2 . 1 . . Propulsion 11 | 2 2 3 1 1 . . 2 Utility 6 | . . 1 3 2 . . . Weapon 9 | . . 1 3 4 . . 1 Tool/Special 1 | . . . . . 1 . . Average Slot Usage (%) 87 | . 100 99 94 70 65 . 35 Engine 12 | . 14 14 14 7 4 . 3 Treads 21 | . 28 28 28 4 . . 21 Leg 1 | . . . . 5 19 . . Wheel 1 | . . . . 7 . . . Device 4 | . 14 13 . 13 28 . 3 Storage 11 | . 14 14 13 6 5 . . Protection 8 | . . . 9 10 . . . Energy Gun 3 | . 13 14 3 1 1 . . Energy Cannon 7 | . . . 10 3 3 . . Ballistic Cannon 11 | . 5 14 14 6 . . 2 Peak Build Rating 58 | 8 8 8 18 53 58 2 35 Average Rating 18 | 5 7 7 13 38 43 2 28 On Entrance 12 | . 8 8 7 18 53 2 2 Naked Turns 26 | . . . . . 21 2 3 Heaviest Build 134 | 14 16 16 44 134 38 . 22 Greatest Support 120 | 40 40 40 40 70 70 3 120 Greatest Overweight (x) 36 | . . . 1 36 6 . . Average Overweight (x) . | . . . . 1 . . . Largest Inventory Capacity 25 | 8 8 8 15 25 10 5 5 Average Capacity 10 | 7 8 8 8 17 9 5 5 Most Carried 20 | 8 8 8 10 20 8 5 5 Average Carried 8 | 6 7 7 7 11 6 5 3 Final Capacity 10 | 8 8 8 10 10 5 5 5 Final Carried 10 | 8 8 8 10 7 5 5 3 Class Distribution -------------------- 74% | Mutant 17% | Derelict-Mutant 7% | Scavenger-Mutant Dominant Class ---------------- Mutant | -10/Materials Mutant | -10/Subcaves Mutant | -8/Scraptown Derelict-Mutant | -6/Factory Scavenger-Mutant | -6/Waste Scavenger-Mutant | -6/Factory Mutant | -6/DSF Resources | -11 -10 -10 -8 -6 -6 -6 -6 ----------- Run | Yrd Mat Sub Scr Fac Was Fac DSF Matter Collected 946 | 295 . 80 60 511 . . . Remotely . | . . . . . . . . Salvage Created 1034 | 185 . 113 . 736 . . . Parts 52 | 20 . 9 . 23 . . . Haulers Intercepted . | . . . . . . . . Recyclers Shooed 2 | . . . . 2 . . . Parts Field Recycled . | . . . . . . . . Retrieved Matter . | . . . . . . . . Parts Self-Destructed . | . . . . . . . . Prevented . | . . . . . . . . Kills | -11 -10 -10 -8 -6 -6 -6 -6 ------- Run | Yrd Mat Sub Scr Fac Was Fac DSF Combat Hostiles Destroyed 18 | . . 3 . 15 . . . Melee 4 | . . . . 4 . . . Guns 4 | . . 2 . 2 . . . Cannons 10 | . . 1 . 9 . . . Classes Destroyed 9 | 2 . 1 . 6 . . . Tunneler 5 | 5 . . . . . . . Recycler 1 | 1 . . . . . . . Watcher 1 | . . . . 1 . . . Grunt 8 | . . . . 8 . . . Brawler 2 | . . . . 2 . . . Duelist 1 | . . . . 1 . . . Sentry 3 | . . . . 3 . . . Programmer 1 | . . . . 1 . . . Subdweller 3 | . . 3 . . . . . Best Kill Streak 5 | 2 . 1 . 5 . . . Combat Bots Only 5 | . . 1 . 5 . . . Max Kills in Single Turn 1 | 1 . 1 . 1 . . . Gunslinging . | . . . . . . . . Exploded . | . . . . . . . . Melee 1 | . . . . 1 . . . Uniques/NPCs Destroyed . | . . . . . . . . Combat | -11 -10 -10 -8 -6 -6 -6 -6 -------- Run | Yrd Mat Sub Scr Fac Was Fac DSF Hostile Shots Fired 477 | . . 14 . 276 8 . 179 Missed 152 | . . 5 . 93 . . 54 Hits 325 | . . 9 . 183 8 . 125 Melee 30 | . . . . 19 8 . 3 Projectile 295 | . . 9 . 164 . . 122 Critical Strikes 20 | . . . . 9 5 . 6 Part Disruptions 1 | . . . . 1 . . . Damage Taken 5690 | . . 223 . 2714 251 . 2502 Core 868 | . . . . 254 138 . 476 Absorbed by Shields . | . . . . . . . . Redirected to Shielding 47 | . . . . 47 . . . Ignored by Resistances 141 | . . . . 92 49 . . Regen/Repaired (Parts) 32 | . . . . 32 . . . Core Remaining (%) 100 | 100 . . 100 . . . . Volleys Fired 102 | 25 . 15 . 46 8 . 8 Largest 2 | 2 . 2 . 2 1 . 1 Hottest 124 | 70 . 80 . 124 90 . 90 Shots Fired 177 | 50 . 24 . 87 8 . 8 Gun 73 | 50 . 9 . 14 . . . Cannon 104 | . . 15 . 73 8 . 8 Launcher . | . . . . . . . . Special . | . . . . . . . . Kinetic 91 | 25 . 15 . 45 . . 6 Thermal 86 | 25 . 9 . 42 8 . 2 Explosive . | . . . . . . . . Electromagnetic . | . . . . . . . . Robot Hit Streak 9 | 7 . 9 . 9 . . 2 Robot Miss Streak 6 | 3 . 1 . 6 . . 5 Penetration Max . | . . . . . . . . Secondary Targets . | . . . . . . . . Shots Hit Robots 132 | 31 . 12 . 87 . . 2 Core Hits 54 | 12 . 6 . 35 . . 1 Critical Kills . | . . . . . . . . Critical Parts Destroyed . | . . . . . . . . Critical Strikes 9 | 5 . . . 4 . . . Burn 5 | 5 . . . . . . . Blast 2 | . . . . 2 . . . Sever 2 | . . . . 2 . . . Melee Attacks 23 | . . . . 23 . . . Impact . | . . . . . . . . Slashing 23 | . . . . 23 . . . Piercing . | . . . . . . . . Sneak Attacks . | . . . . . . . . Combat Hostiles . | . . . . . . . . Follow-up Attacks . | . . . . . . . . Damage Inflicted 3050 | 340 . 173 . 2410 . . 127 Guns 738 | 340 . 102 . 296 . . . Cannons 1522 | . . 71 . 1324 . . 127 Explosions . | . . . . . . . . Melee 790 | . . . . 790 . . . Ramming . | . . . . . . . . Kinetic 1143 | 128 . 71 . 817 . . 127 Thermal 1117 | 212 . 102 . 803 . . . Explosive . | . . . . . . . . Electromagnetic . | . . . . . . . . Impact . | . . . . . . . . Slashing 790 | . . . . 790 . . . Piercing . | . . . . . . . . Highest Corruption 55 | . . . . 36 55 55 55 Average Corruption 21 | . . . . 9 48 55 55 Corruption Purged . | . . . . . . . . Corruption Blocked . | . . . . . . . . Effects 49 | . . . . 25 14 . 10 Message Errors 7 | . . . . 2 4 . 1 Matter Fused 13 | . . . . 9 1 . 3 Heat Flow Errors 4 | . . . . 3 . . 1 Energy Discharges 4 | . . . . 2 1 . 1 Parts Rejected 1 | . . . . . 1 . . Data Loss (minor) 5 | . . . . 3 2 . . Data Loss (major) 2 | . . . . 1 . . 1 Misfires 3 | . . . . 2 1 . . Alerts 2 | . . . . 1 1 . . Misdirections 5 | . . . . . 2 . 3 Weapon Failures 3 | . . . . 2 1 . . Overload Shots . | . . . . . . . . Overflow Damage 22 | . . . . 22 . . . Projectiles . | . . . . . . . . Explosions . | . . . . . . . . Melee 22 | . . . . 22 . . . Knockbacks 5 | . . . . 4 . . 1 Impact . | . . . . . . . . Kinetic 5 | . . . . 4 . . 1 Secondary . | . . . . . . . . Self-Inflicted Damage . | . . . . . . . . Shots . | . . . . . . . . Rammed . | . . . . . . . . Targets Rammed . | . . . . . . . . Kicked . | . . . . . . . . Crushed . | . . . . . . . . Highest Temperature 201 | 110 . . . 201 . . 48 Average Temperature 44 | 41 . . . 45 . . 48 Received Heat Transfer 1155 | . . 69 . 891 . . 195 Siege Activations . | . . . . . . . . Martial Activations . | . . . . . . . . Shielding Activations . | . . . . . . . . Robots Disrupted . | . . . . . . . . Combat Hostiles . | . . . . . . . . Robots Corrupted . | . . . . . . . . Combat Hostiles . | . . . . . . . . Parts Fried . | . . . . . . . . Impact Corruptions . | . . . . . . . . Robots Melted . | . . . . . . . . Combat Hostiles . | . . . . . . . . Parts Melted 7 | 1 . 1 . 5 . . . Heat Transferred 2759 | 999 . 296 . 1464 . . . Parts Sabotaged . | . . . . . . . . Parts Stolen . | . . . . . . . . Parts Stripped . | . . . . . . . . Power Chain Reactions . | . . . . . . . . Alert | -11 -10 -10 -8 -6 -6 -6 -6 ------- Run | Yrd Mat Sub Scr Fac Was Fac DSF Maximum Alert Level . | . . . . . . . . Low Security (%) 100 | 100 100 . . 100 100 100 100 Level 1 . | . . . . . . . . Level 2 . | . . . . . . . . Level 3 . | . . . . . . . . Level 4 . | . . . . . . . . Level 5 . | . . . . . . . . High Security . | . . . . . . . . Max Security . | . . . . . . . . Peak Influence 80 | 10 . . . 80 6 . 5 Initial 6 | . . . . . 6 . 4 Average 13 | . . . . 22 1 . 2 Influence Increases 515 | 30 . . . 456 7 6 16 Destroy 0b10 Robot/C 300 | . . . . 300 . . . Destroy 0b10 Robot/NC 35 | 30 . . . 5 . . . Destroy Leader 72 | . . . . 72 . . . Successful Hack 6 | . . . . . . 6 . Disable Machine 30 | . . . . 30 . . . Destroy Structure 12 | . . . . 4 7 . 1 Lose Combat Pursuer 60 | . . . . 45 . . 15 Influence Decreases 510 | 30 . . . 437 26 . 17 Entered New Map 15 | . . . . . 13 . 2 Time Decay 330 | 30 . . . 287 13 . . Lost Part 165 | . . . . 150 . . 15 Squads Dispatched 8 | . . . . 7 . . 1 Investigation 2 | . . . . 2 . . . Extermination 1 | . . . . 1 . . . Reinforcement 2 | . . . . 1 . . 1 Assault . | . . . . . . . . Garrison 3 | . . . . 3 . . . Intercept . | . . . . . . . . Searches Triggered . | . . . . . . . . Construction Impeded 1 | . . . . 1 . . . Haulers Reinforced . | . . . . . . . . Active Scanning Responses . | . . . . . . . . Cargo Convoy Interrupts . | . . . . . . . . Stealth | -11 -10 -10 -8 -6 -6 -6 -6 --------- Run | Yrd Mat Sub Scr Fac Was Fac DSF Distress Signals 1 | . . . . 1 . . . Communications Jammed . | . . . . . . . . Distress Signals . | . . . . . . . . Times Spotted 45 | . . 4 . 26 6 . 9 Peak Tracking Total 9 | . . 2 . 6 6 . 9 Tactical Retreats 2 | . . . . 1 . . 1 Traps | -11 -10 -10 -8 -6 -6 -6 -6 ------- Run | Yrd Mat Sub Scr Fac Was Fac DSF Traps Triggered 2 | . . . . 1 . . 1 Indirectly . | . . . . . . . . Trap Hack Attempts . | . . . . . . . . Triggered . | . . . . . . . . Disarmed . | . . . . . . . . Reprogrammed . | . . . . . . . . Reused . | . . . . . . . . Traps Extracted . | . . . . . . . . Installed . | . . . . . . . . Triggered . | . . . . . . . . Machines | -11 -10 -10 -8 -6 -6 -6 -6 ---------- Run | Yrd Mat Sub Scr Fac Was Fac DSF Machines Disabled 2 | . . . . 2 . . . Max in Single Turn 1 | . . . . 1 . . . Machines Repaired . | . . . . . . . . Machines Dismantled . | . . . . . . . . Machines Sabotaged . | . . . . . . . . Overloaded Fab Kills . | . . . . . . . . Hacking | -11 -10 -10 -8 -6 -6 -6 -6 --------- Run | Yrd Mat Sub Scr Fac Was Fac DSF Machines Accessed 10 | . . . 4 5 . 1 . Terminals 5 | . . . . 4 . 1 . Fabricators . | . . . . . . . . Repair Stations . | . . . . . . . . Recycling Units . | . . . . . . . . Scanalyzers . | . . . . . . . . Garrison Access 1 | . . . . 1 . . . Total Hacks 24 | . . . 14 8 . 2 . Successful 15 | . . . 14 . . 1 . Failed 9 | . . . . 8 . 1 . Catastrophic 5 | . . . . 5 . . . Database Lockouts . | . . . . . . . . Manual 6 | . . . . 6 . . . Terminals 8 | . . . . 6 . 2 . Fabricators . | . . . . . . . . Repair Stations . | . . . . . . . . Recycling Units . | . . . . . . . . Scanalyzers . | . . . . . . . . Garrison Access 2 | . . . . 2 . . . Terminal Hacks 15 | . . . 14 . . 1 . Record 13 | . . . 13 . . . . Open DSF 1 | . . . . . . 1 . Proto ID Catalog 1 | . . . 1 . . . . Fabricator Hacks . | . . . . . . . . Repair Station Hacks . | . . . . . . . . Recycling Unit Hacks . | . . . . . . . . Scanalyzer . | . . . . . . . . Garrison Access Hacks . | . . . . . . . . Unauthorized Hacks . | . . . . . . . . Terminals . | . . . . . . . . Fabricators . | . . . . . . . . Repair Stations . | . . . . . . . . Recycling Units . | . . . . . . . . Scanalyzers . | . . . . . . . . Garrison Access . | . . . . . . . . Data Cores Recovered . | . . . . . . . . Used . | . . . . . . . . Hacking Detections 6 | . . . . 5 . 1 . Full Trace Events 2 | . . . . 2 . . . Feedback Events . | . . . . . . . . Feedback Blocked . | . . . . . . . . Robot Schematics Acquired . | . . . . . . . . Robots Built . | . . . . . . . . Authchips . | . . . . . . . . Time . | . . . . . . . . Total Robot Build Rating . | . . . . . . . . Part Schematics Acquired . | . . . . . . . . Parts Built . | . . . . . . . . Authchips . | . . . . . . . . Time . | . . . . . . . . Total Part Build Rating . | . . . . . . . . Parts Repaired . | . . . . . . . . Time . | . . . . . . . . Parts Recycled . | . . . . . . . . Recycled Matter . | . . . . . . . . Retrieved Matter . | . . . . . . . . Retrieved Components . | . . . . . . . . Parts Scanalyzed . | . . . . . . . . Part Schematics Acquired . | . . . . . . . . Parts Damaged . | . . . . . . . . Bothacking | -11 -10 -10 -8 -6 -6 -6 -6 ------------ Run | Yrd Mat Sub Scr Fac Was Fac DSF Used RIF Installer . | . . . . . . . . Robots Hacked . | . . . . . . . . Non-combat . | . . . . . . . . Combat . | . . . . . . . . Robot Hacks Applied . | . . . . . . . . Relay Couplers Released . | . . . . . . . . Fabnet Peak Effective % . | . . . . . . . . Robots Rewired . | . . . . . . . . Allies Hacked . | . . . . . . . . Hacks Repelled . | . . . . . . . . Allies | -11 -10 -10 -8 -6 -6 -6 -6 -------- Run | Yrd Mat Sub Scr Fac Was Fac DSF Total Allies . | . . . . . . . . Largest Group . | . . . . . . . . Highest-Rated Group . | . . . . . . . . Highest-Rated Ally . | . . . . . . . . Total Orders . | . . . . . . . . Ally Attacks . | . . . . . . . . Total Damage . | . . . . . . . . Kills . | . . . . . . . . Allies Corrupted . | . . . . . . . . Allies Melted . | . . . . . . . . Intel | -11 -10 -10 -8 -6 -6 -6 -6 ------- Run | Yrd Mat Sub Scr Fac Was Fac DSF Active Infowar (turns) 702 | 29 130 188 2 199 154 . . Sensors 353 | . . . . 199 154 . . Terrain 2 | . . . 2 . . . . Seismic 347 | 29 130 188 . . . . . Robot Analysis Total . | . . . . . . . . Derelict Logs Recovered 4 | . . . 4 . . . . Drone Launches . | . . . . . . . . Drone Recoveries . | . . . . . . . . Exploration | -11 -10 -10 -8 -6 -6 -6 -6 ------------- Run | Yrd Mat Sub Scr Fac Was Fac DSF Turns Passed 5047 | 333 130 198 3127 945 175 2 137 Spaces Moved 2819 | 158 72 76 1922 405 119 3 64 Core 74 | 12 . . . 5 49 3 5 Treads 2336 | 146 72 76 1922 61 . . 59 Legs 210 | . . . . 140 70 . . Wheels 199 | . . . . 199 . . . Hover . | . . . . . . . . Flight . | . . . . . . . . Fastest Speed 50 | 50 160 160 160 115 50 50 50 Average Speed 157 | 151 160 160 160 162 106 50 154 Slowest Speed 1850 | 160 160 160 240 1850 350 50 170 Overloaded Moves . | . . . . . . . . Propulsion Burnouts . | . . . . . . . . Robots Hopped . | . . . . . . . . Potential Cave-ins 2 | . . . . . 2 . . Cave-ins Triggered . | . . . . . . . . Exploration Rate (%) 39 | 9 13 6 92 8 69 . 76 Regions Visited 7 Branch Regions 2 Pre-discovered Areas 1 | . . . 1 . . . . Known Exits Taken 1 | . . . . . . 1 . Unknown Exits Taken 4 | 1 1 1 1 . . . . Scrap Searched 5 | . . . 5 . . . . Spaces Dug 7 | . . . . . 7 . . Terrain Destroyed 14 | . . . . 5 8 . 1 Melee . | . . . . . . . . Projectile 14 | . . . . 5 8 . 1 AOE . | . . . . . . . . Terrain Rammed . | . . . . . . . . Walls Destroyed . | . . . . . . . . Machines Disabled . | . . . . . . . . Actions | -11 -10 -10 -8 -6 -6 -6 -6 --------- Run | Yrd Mat Sub Scr Fac Was Fac DSF Total 3239 | 207 87 132 1979 579 161 2 92 Wait 112 | . 10 28 17 30 27 . . Move 2813 | 157 71 75 1921 405 118 2 64 Hop . | . . . . . . . . Pick Up 77 | 16 2 7 15 29 1 . 7 Fast Attach 10 | 1 . . 3 2 . . 4 Attach 46 | 6 . . 3 26 2 . 9 Detach 7 | . . . . 4 3 . . Swap 11 | . 2 . 3 6 . . . Drop 38 | 2 2 7 17 8 2 . . Fire 102 | 25 . 15 . 46 8 . 8 Melee 23 | . . . . 23 . . . Ram . | . . . . . . . . Kick . | . . . . . . . . Crush . | . . . . . . . . Escape Stasis . | . . . . . . . . Rewire . | . . . . . . . . Trap . | . . . . . . . . Miscellaneous . | . . . . . . . . Route ------- -11/Scrapyard -10/Materials -10/Subcaves -8/Scraptown (discovered 2 exits: *Fac x2) -6/Factory -6/Waste -6/Factory -6/DSF (discovered 1 exit: [*Fac]) History --------- Turn | Location | Event 7 | -11/Scrapyard | Discovered new exit (range 15) 334 | -11/Scrapyard | Entered Materials 335 | -10/Materials | Build established: Mutant 454 | -10/Materials | Discovered new exit (range 5) 464 | -10/Materials | Entered Subcaves 465 | -10/Subcaves | Approached by a straggling Scientist 520 | -10/Subcaves | Shifting Twisted Machinery released Sub. Power Source 534 | -10/Subcaves | Ambushed by Subdwellers from Twisted Machinery 643 | -10/Subcaves | Scientist uncovered a shortcut to Scraptown 662 | -10/Subcaves | Entered Scraptown 723 | -8/Scraptown | Visited Red Mages 781 | -8/Scraptown | Visited Cave Peace 797 | -8/Scraptown | Visited SPCMW 850 | -8/Scraptown | Visited Assassins FH 893 | -8/Scraptown | Visited The Evicted 956 | -8/Scraptown | Visited UFD Registry 956 | -8/Scraptown | Registered with UFD as "Macecutter" 1004 | -8/Scraptown | Visited Science Testing Area 1278 | -8/Scraptown | Scanned Subdweller tech in exchange for log data 1282 | -8/Scraptown | Learned location of Quarantine (-3) 1284 | -8/Scraptown | Learned Research emergency access door positions 1286 | -8/Scraptown | Learned location of 1 exit from Factory 1287 | -8/Scraptown | Learned Research terminal intel 1308 | -8/Scraptown | Discovered new exit (range 13) 2055 | -8/Scraptown | Visited CPS Storage 2070 | -8/Scraptown | Received an X-ray algorithm 2519 | -8/Scraptown | Visited Science Guys 2596 | -8/Scraptown | Visited Observation Area 2650 | -8/Scraptown | Visited LU-1G1's Boring Crew 2938 | -8/Scraptown | Visited Chapter 10 3000 | -8/Scraptown | Visited Scrapoid Pod Storage 3034 | -8/Scraptown | Visited Research Penetration Think Tank 3061 | -8/Scraptown | Visited Cartography Club 3280 | -8/Scraptown | Visited Scrapoid Research Area 3319 | -8/Scraptown | Visited Junk Repository 3529 | -8/Scraptown | Found Scrap Suit 3597 | -8/Scraptown | Discovered new exit (range 3) 3644 | -8/Scraptown | Build established: Derelict-Mutant 3690 | -8/Scraptown | Met Optimus 3690 | -8/Scraptown | Accepted into 0bPrime 3789 | -8/Scraptown | Entered Factory 3789 | -6/Factory | Evolved 8 slots: Power x1, Propulsion x2, Utility x5 3790 | -6/Factory | Identified exit to Lower Caves 4333 | -6/Factory | Garrison activated, responded to threat 4372 | -6/Factory | System corruption reached 10% 4415 | -6/Factory | Lost 14 parts (2p3n7u2w) 4726 | -6/Factory | System corruption reached 30% 4734 | -6/Factory | Manually triggered Chute Trap 4734 | -6/Factory | Sucked down chute 4734 | -6/Factory | Entered Waste 4749 | -6/Waste | EMP discharged 4773 | -6/Waste | Build established: Scavenger-Mutant 4832 | -6/Waste | Spotted C-40 Crusher 4837 | -6/Waste | Spotted C-40 Crusher 4842 | -6/Waste | Spotted C-40 Crusher 4847 | -6/Waste | Spotted C-40 Crusher 4849 | -6/Waste | EMP discharged 4855 | -6/Waste | Crushed by Compactor (0 parts destroyed, 1 dropped) 4858 | -6/Waste | Crushed by Compactor (1 part destroyed, 1 dropped) 4858 | -6/Waste | Spotted C-40 Crusher 4863 | -6/Waste | Crushed by Compactor (1 part destroyed) 4869 | -6/Waste | Crushed by Compactor (1 part destroyed) 4877 | -6/Waste | Crushed by Compactor (1 part destroyed) 4883 | -6/Waste | Crushed by Compactor (0 parts destroyed, 1 dropped) 4883 | -6/Waste | Spotted C-40 Crusher 4888 | -6/Waste | Crushed by Compactor (1 part destroyed, 2 dropped) 4903 | -6/Waste | Discovered new exit (range 13) 4909 | -6/Waste | Entered Factory 4911 | -6/Factory | Identified exit to DSF 4911 | -6/Factory | Entered DSF 4919 | -6/DSF | Lost 7 parts (1p3n3u) 4959 | -6/DSF | Core integrity fell below 50% 4967 | -6/DSF | Additional patrols routed to DSF 5021 | -6/DSF | Discovered new exit (range 16) 5023 | -6/DSF | Core integrity fell below 20% 5048 | -6/DSF | Destroyed by G-50 Soldier with Heavy Laser Last Messages --------------- 05028_ Triggered Alarm Trap. 05028_ An alarm sounds. 05029_ C-30 ARC bursts open, deploying its payload. 05029_ L-41 Fighter unfolds itself. 05029_ G-50 Soldier unfolds itself. 05030_ Slug penetrates Wall. 05032_ Acquired Lightning Gun. 05034_ Imp. Medium Treads destroyed. 05034_ Critical hit (Burn: +37). 05036_ Penetrated by Slug. 05039_ Slug penetrates Matter Repository. 05039_ Matter Repository disabled. 05040_ Penetrated by Slug. 05042_ System corrupted: Substantial component data lost. 05042_ Slug penetrates Wall. 05044_ Lightning Gun destroyed. 05047_ Arm. Medium Treads severed. 05048_ Penetrated by Slug. Map ----- +----------------------------------------------------+ | #????????????????????? | | #????????????????????? | | #===### %###????????????????????? | | ==#===###% ###????????????????????? | | ####### #????????????????????? | | ??????# #????????????????????? | | ??????# #????????????????????? | | ??????### ####???????????????????? | | ??????#== !!"#???????????????????? | | ??????#== %!##???????????????????? | | ??????#== !!#????????????????????? | | ??????### "################??????? | | ???????##% ###===# ## !!#??????? | | ??#!!!## #" # ## !!##?????? | | % "#?????? | | % ##?????? | | ^ % H #??????? | | //#!!!## "#!!!#===## Y!!#??????? | | ??#!!!?## ###!!!#===## !!#??????? | | ??###???#% #?##########hh###??????? | | ???????!! =????????#[ #???????? | | ??????#!! =????????#[[ #???????? | | ??????#!! =????????#[[ #???????? | | ??????### ##???????### ##???????? | | ???????? !????????#// l/#???????? | | ???????? !????????#//x@/#???????? | | ??????? !????????###gg##???????? | | ???????## #??????????# #????????? | | ????????# ??????????# "????????? | | ????????? ????????? g %"????????? | | ???????????????????? %<""???????? | | ???????????????????]]##""%""???????? | | ??????????????????###?#"""""???????? | | ??????????????????????##"##????????? | | ???????????????????????#"??????????? | | ????????????????????????"??????????? | | ???????????????????????????????????? | | ???????????????????????????????????? | | ???????????????????????????????????? | | ???????????????????????????????????? | | ???????????????????????????????????? | | | | | | | | | | | | | | | | | | | +----------------------------------------------------+ Best States ------------- Heat Dissipation 78 Energy Generation 25 Energy Capacity 465 Matter Stores 300 Matter Capacity 300 Sight Range 16 Robot Scan Range 16 Terrain Scan Density 10 Armor Coverage 600 Resistance: KI 20 Weapon Shielding 66 Melee Speed Boost 20 Evasion (%) 55 Melee Accuracy 8 Recoil Reduction 4 Authchip Count 1 Item Schematics ----------------- None Robot Schematics ------------------ None Fabricated ------------ Nothing Repaired ---------- Nothing Alien Tech Used ----------------- None Achievements -------------- Omniscient Cartographer Challenges ------------ None Game ------ Seed SurveybotLightStreamer Manual? 0 Play Time 00:40:30 Cumulative 73.3 hours Start 2025.07.29 @ 19:31:28 End 2025.07.29 @ 20:09:41 Sessions 1 Manual Loads 0 Difficulty Rogue Special Mode None Game No. 153 Rogue 153 Adventurer 0 Explorer 0 Win Type - Total 1 Types 1/0/0/0/0/0/0/0/0/0 Lore% 55 Gallery% 51 Achievement% 39 Wizard Run 0 Options --------- Layout 1 ASCII 0 Keyboard 0 Movement Mouse Keybinds 0 Fullscreen 1 Font 24/Smallcaps Map View 50x40 Zoom Use 0% Tactical HUD 1 Map Filters NONE Filters NONE Steam 1 RUN: 7dd53c5f-b78a-4004-805c-f2e96ab7c864